[Event "25th Nepal Championship 2025"]
[Site "Hetauda"]
[Date "2025.01.29"]
[Round "7.5"]
[White "Thapa, Binay"]
[Black "Maharjan, Suroj"]
[Result "0-1"]
[Annotator "TA"]
[ECO "D02"]
[WhiteElo "1688"]
[BlackElo "1952"]
[PlyCount "91"]
[EventDate "2025.01.24"]
[EventType "tourn"]
[EventCountry "NEP"]
[SourceTitle "playchess.com"]
[Source "ChessBase"]
[SourceQuality "1"]
[TimeControl "5400+30"]

{[%evp 9,91,12,18,0,15,1,21,13,33,8,12,-17,0,-1,78,10,10,0,6,0,0,0,0,0,0,0,8,0,0,-5,0,-12,-20,-24,0,0,-14,-43,10,0,27,-192,-36,-152,-133,-153,-128,-104,-102,-677,-545,-540,-533,-692,-502,-883,-872,-857,-858,-870,-829,-938,-904,-1122,-1061,-3600,-3232,-2814,-2725,-29982,-29983,-29976,-7312,-29986,-29987,-29986,-6944,-29990,-29991,-29991,-29992,-29992,-29993,-29996]} 1. Nf3 {[%emt 0:00:01]} d5 {[%emt 0:00:36]} 2. d4 {[%emt 0:00:06]} Bf5 {[%emt 0:00:11]} 3. Bf4 {[%emt 0:00:24]} e6 {[%emt 0:00:38]} 4. e3 {[%emt 0:00:34]} Nd7 {[%emt 0:00:24]} 5. Bd3 {[%emt 0:00:17]} Bxd3 {[%emt 0:00:38]} 6. Qxd3 {[%emt 0:00:07] D02: 1 d4 d5 2 Nf3 sidelines, including 2...Nf6 3 g3 and 2...Nf6 3 Bf4.} c5 {[%emt 0:00:01]} 7. c3 {[%emt 0:00:21]} c4 {[%emt 0:00:07]} 8. Qc2 {[%emt 0:00:16] The position is equal.} Ngf6 {[%emt 0:00:09]} 9. Nbd2 {[%emt 0:00:18]} b5 {[%emt 0:00:13]} 10. a3 {[%emt 0:00:12]} a5 $146 {[%emt 0:00:08]} (10... Be7 11. O-O O-O 12. e4 Re8 13. e5 Nh5 14. Be3 g6 15. a4 a6 16. Ra2 Qc7 {0-1 Trasakova,A (1393)-Voriskova,A (1080) CZE-ch U12 Girls 2017 (8)}) 11. O-O {[%emt 0:00:15]} b4 {[%emt 0:00:48]} (11... a4 $11) 12. e4 {[%emt 0:00:35]} (12. axb4 $16 {Black must now prevent Qa4.} axb4 13. Rxa8 Qxa8 14. b3) 12... b3 $11 {[%emt 0:00:24]} 13. Qb1 {[%emt 0:00:06]} Be7 {[%emt 0:00:12]} 14. exd5 {[%emt 0:01:06]} exd5 {[%emt 0:00:03]} 15. Re1 {[%emt 0:00:18]} O-O {[%emt 0:00:02]} 16. Qf5 {[%emt 0:02:24]} Re8 {[%emt 0:00:36]} 17. Ne5 {[%emt 0:01:05]} Nxe5 {[%emt 0:02:05]} 18. Bxe5 {[%emt 0:00:31]} Qd7 {[%emt 0:00:08]} 19. Qf3 {[%emt 0:01:27]} Ra6 {[%emt 0:00:23]} 20. Re2 {[%emt 0:00:14]} Re6 {[%emt 0:00:06]} 21. Rae1 {[%emt 0:00:17]} h6 {[%emt 0:01:34]} (21... g6 {seems wilder.} 22. Qh3 Bd8 23. Nf1 Ne4) 22. Qg3 {[%emt 0:02:01]} Bf8 {[%emt 0:03:59]} 23. f3 {[%emt 0:00:29]} Qa7 {[%emt 0:02:04]} (23... g6 $15) 24. Kf1 {[%emt 0:00:42]} Nd7 {[%emt 0:00:12]} 25. Nb1 $2 {[%emt 0:01:24] [#]} (25. f4 $1 $11 {and White has nothing to worry.}) 25... Kh7 $2 {[%emt 0:03:03]} (25... Nb6 $1 $19 {Threatens to win with ...Na4.} 26. Qf2 Qd7) 26. Bf4 {[%emt 0:01:28]} (26. f4 $15) 26... Rxe2 {[%emt 0:00:26]} 27. Rxe2 {[%emt 0:00:11]} Rxe2 {[%emt 0:00:06]} 28. Kxe2 {[%emt 0:00:05]} Qa6 $36 {[%emt 0:00:49][%mdl 2048] Keeping White busy.} 29. Qf2 $2 {[%emt 0:00:13][%mdl 8192]} (29. Qg4 $17 Qc6 30. Kd1) 29... Qg6 $19 {[%emt 0:00:53] [#]} 30. Nd2 {[%emt 1:28:03]} Qc2 {[%emt 1:24:32]} 31. Qe3 {[%emt 0:00:00]} Nf6 {[%emt 0:00:00] Prevents Qe8.} 32. Qe5 {[%emt 0:00:00]} (32. Qg1 $142 Qxb2 33. Qb1+ Qc2 (33... Qxb1 $2 34. Nxb1 g5 35. Be5 $19) 34. a4) 32... Qxb2 {[%emt 0:00:00]} 33. Qf5+ {[%emt 0:00:00]} Kg8 {[%emt 0:00:00]} 34. Bxh6 {[%emt 0:00:00]} Qxc3 {[%emt 0:00:00]} 35. Bg5 {[%emt 0:00:00]} Qxd4 {[%emt 0:00:00]} 36. Bxf6 {[%emt 0:00:00]} gxf6 {[%emt 0:00:00][%mdl 4096] Endgame KQB-KQN. Black is two pawns up.} 37. Qh3 {[%emt 0:00:00]} b2 {[%emt 0:00:00]} 38. Qg3+ {[%emt 0:00:00]} Kh7 {[%emt 0:00:00] ( -> ...Qd3+)} 39. Qh3+ {[%emt 0:00:00]} Bh6 {[%emt 0:00:00]} 40. Qf5+ {[%emt 0:00:00]} Kg7 {[%emt 0:00:00]} 41. Nb1 {[%emt 0:00:00]} Qe3+ {[%emt 0:00:00]} 42. Kf1 {[%emt 0:00:00]} d4 {[%emt 0:00:00]} (42... c3 $142 43. Nxc3 Qxc3 44. f4 Qc1+ (44... Qxa3 $2 45. Qg4+ Kh8 46. Qc8+ Bf8 47. Qf5 $19) 45. Ke2 b1=Q (45... b1=B $2 46. Qg4+ Bg6 47. Kf3 $19) 46. Qxb1 Qxb1 47. g3 Qe4+ 48. Kd2 d4 49. h4 Qe3+ 50. Kc2 Qc3+ (50... Qxg3 {is a self mate.} 51. h5 Qc3+ 52. Kb1 Qb3+ 53. Ka1 d3 54. a4 d2 55. f5 d1=Q#) 51. Kb1 d3 (51... Qxa3 52. g4 d3 53. g5 Qb3+ 54. Ka1 d2 55. gxh6+ Kxh6 56. f5 d1=Q#) 52. a4 Qc2+ (52... d2 $2 53. h5 d1=Q+ 54. Ka2 Qdc2#) 53. Ka1 d2 54. h5 d1=Q#) 43. Qe4 {[%emt 0:00:00]} Qxe4 {[%emt 0:00:00] Black mates.} 44. fxe4 {[%emt 0:00:00]} c3 {[%emt 0:00:00]} 45. Ke2 {[%emt 0:00:00]} c2 {[%emt 0:07:30]} 46. Ke1 {Weighted Error Value: White=1.12/Black=0.21 (precise)   Loses game:     	White=2     	---        Mistake:       	White=3     	Black=3      Inaccurate:     	White=2     	Black=1      OK:         	White=8     	Black=7      Best:        	---       	Black=1} 0-1

[Event "25th Nepal Championship 2025"]
[Site "Hetauda"]
[Date "2025.01.29"]
[Round "7.6"]
[White "Dahal, Sushrut"]
[Black "Maharjan, Prem Krishna"]
[Result "1-0"]
[Annotator "TA"]
[ECO "D00"]
[WhiteElo "2021"]
[BlackElo "1882"]
[PlyCount "57"]
[EventDate "2025.01.24"]
[EventType "tourn"]
[EventCountry "NEP"]
[SourceTitle "playchess.com"]
[Source "ChessBase"]
[SourceQuality "1"]
[TimeControl "5400+30"]

{[%evp 9,57,12,16,6,25,33,29,6,20,23,48,45,55,46,45,48,48,59,52,42,51,26,31,0,0,0,0,-16,-15,-10,1,-14,0,0,11,11,11,6,28,24,13,6,118,112,241,135,246,246,29988,29989]} 1. d4 {[%emt 0:00:01]} d5 {[%emt 0:00:13]} 2. Nc3 {[%emt 0:00:22]} Bf5 {[%emt 0:03:13]} 3. Bf4 {[%emt 0:01:51]} e6 {[%emt 0:00:33]} 4. f3 {[%emt 0:01:48]} Bd6 {[%emt 0:00:53]} 5. Bxd6 {[%emt 0:00:41]} Qxd6 {[%emt 0:00:22]} 6. e4 {[%emt 0:00:26]} dxe4 {[%emt 0:00:24]} 7. fxe4 {[%emt 0:00:10]} Bg6 {[%emt 0:00:15]} 8. Nf3 {[%emt 0:02:58] White has an edge.} Nd7 {[%emt 0:01:02]} 9. Qd2 {[%emt 0:02:08]} a6 {[%emt 0:00:22]} 10. O-O-O {[%emt 0:04:08]} Ne7 {[%emt 0:01:31]} 11. h4 {[%emt 0:02:40] And now h5 would win.} Bh5 {[%emt 0:00:55]} 12. Qg5 {[%emt 0:01:19]} Bxf3 {[%emt 0:07:16]} 13. gxf3 {[%emt 0:00:02][%cal Oe4e5]} h6 {[%emt 0:00:47]} 14. Qe3 {[%emt 0:01:28]} (14. Qxg7 $2 {loses.} Qf4+ 15. Kb1 Rg8 $19) 14... Nb6 {[%emt 0:02:01]} 15. e5 {[%emt 0:09:52]} Qc6 {[%emt 0:05:09]} 16. Qe4 {[%emt 0:06:48]} O-O-O {[%emt 1:13:34]} 17. Rg1 {[%emt 1:02:18]} g6 {[%emt 0:00:00]} 18. Bh3 {[%emt 0:00:00]} Nbd5 {[%emt 0:00:00]} 19. Nxd5 {[%emt 0:00:00]} Nxd5 {[%emt 0:00:00]} (19... Qxd5 {simplifies} 20. Qxd5 Nxd5 21. c3 c6) 20. Bg2 {[%emt 0:00:00]} Qc4 {[%emt 0:00:00]} 21. Kb1 {[%emt 0:00:00]} Nb4 {[%emt 0:00:00]} 22. b3 {[%emt 0:00:00]} Qc3 {[%emt 0:00:00][%cal Ob4a2]} 23. a3 {[%emt 0:03:00]} Nd5 {[%emt 0:00:00]} 24. Rd3 {[%emt 0:00:00][%cal Oe4d5,Bd1d3,Bd3c3,Bc3c7][%mdl 32] Prevents Ne3. Qxd5! is the strong threat.} Qa5 {[%emt 0:00:00]} 25. Kb2 {[%emt 0:00:00]} g5 {[%emt 0:00:00]} (25... Kb8 $11 {keeps the balance.}) 26. f4 $1 $16 {[%emt 0:00:00]} Nxf4 {[%emt 0:00:00]} (26... Rdg8 $16 {was worth a try.}) 27. Qxb7+ $18 {[%emt 0:00:00]} Kd7 {[%emt 0:00:00] [#]} 28. Rc3 {[%emt 0:00:00][%cal Oc3c7] White threatens Rxc7+! and mate.} Qb6 {[%emt 0:00:00] [#]} (28... Rb8 $18 29. Qc6+ Kd8) 29. Rxc7+ $3 {[%emt 0:00:00][%mdl 512] Weighted Error Value: White=0.07 (flawless) /Black=0.52.  Mistake:       	---       	Black=3      Inaccurate:     	White=1     	Black=1      OK:         	White=8     	Black=8      Best:        	White=2     	Black=1      Strong:       	White=1     	---        Brilliant:      	White=1     	---} 1-0

[Event "25th Nepal Championship 2025"]
[Site "Hetauda"]
[Date "2025.01.30"]
[Round "8.1"]
[White "Silwal, Purushottam"]
[Black "Maharjan, Prem Krishna"]
[Result "1-0"]
[Annotator "TA"]
[ECO "C81"]
[WhiteElo "2045"]
[BlackElo "1882"]
[PlyCount "116"]
[EventDate "2025.01.24"]
[EventType "tourn"]
[EventCountry "NEP"]
[SourceTitle "playchess.com"]
[Source "ChessBase"]
[SourceQuality "1"]
[TimeControl "5400+30"]

{[%evp 20,116,41,9,32,19,26,11,26,-14,14,14,73,69,74,72,60,61,60,74,81,84,110,95,101,100,129,127,165,141,312,353,327,324,370,369,371,377,417,373,360,339,443,441,407,354,485,485,522,512,500,500,501,507,507,507,506,504,633,494,652,647,625,586,581,573,737,681,755,714,702,695,1014,495,738,758,912,820,29971,29972,29970,29968,29978,29979,29979,29980,29979,29981,29980,29982,29982,29983,29983,29984,29984,29985,29985,29986,29989]} 1. e4 {[%emt 0:00:12]} e5 {[%emt 0:00:06]} 2. Nf3 {[%emt 0:00:09]} Nc6 {[%emt 0:00:06]} 3. Bb5 {[%emt 0:00:06]} a6 {[%emt 0:00:05]} 4. Ba4 {[%emt 0:00:03]} Nf6 {[%emt 0:00:06]} 5. O-O {[%emt 0:00:05]} Nxe4 {[%emt 0:00:09]} 6. d4 {[%emt 0:00:32]} b5 {[%emt 0:00:06]} 7. Bb3 {[%emt 0:00:05]} d5 {[%emt 0:00:07]} 8. dxe5 {[%emt 0:00:06]} Be6 {[%emt 0:00:07]} 9. Qe2 {[%emt 0:02:07]} Be7 {[%emt 0:00:28]} 10. Rd1 {[%emt 0:03:03]} O-O {[%emt 0:04:32]} 11. c3 {[%emt 0:17:34]} f5 {[%emt 0:06:16]} 12. exf6 {[%emt 0:01:07]} Bxf6 {[%emt 0:00:18]} 13. Be3 {[%emt 0:02:52]} ({Don't go for} 13. Qxe4 $2 dxe4 14. Bxe6+ Kh8 15. Rxd8 Raxd8 $19) 13... Na5 {[%emt 0:05:57] The position is equal.} 14. Bc2 {[%emt 0:04:41][%cal Bb3c2,Bc2e4,Be4d3][%mdl 32] [#] Hoping for Bxe4.} Qe7 {[%emt 0:00:46]} 15. Nbd2 {[%emt 0:02:59]} Bg4 {[%emt 0:11:55]} (15... Bf5 $11) 16. Qd3 $16 {[%emt 0:00:37][%csl LRd5,LRe4]} c6 {[%emt 0:08:13]} 17. Nxe4 {[%emt 0:00:28]} dxe4 {[%emt 0:00:23]} 18. Qxe4 {[%emt 0:00:09]} Qxe4 {[%emt 0:00:16]} 19. Bxe4 {[%emt 0:00:04]} Rae8 {[%emt 0:00:28]} 20. Bd3 {[%emt 0:00:24]} Be7 {[%emt 0:03:52]} 21. Re1 {[%emt 0:10:29]} Bxf3 {[%emt 0:06:18]} 22. gxf3 {[%emt 0:00:37]} Rd8 {[%emt 0:04:10]} 23. Rad1 {[%emt 0:06:01][%cal Ba1d1,Bd1d3,Bd3d2,Bd2d5][%mdl 32]} c5 {[%emt 0:10:04]} 24. b4 {[%emt 0:06:52]} Rxd3 $2 {[%emt 0:11:57] A mistake that costs the game.} (24... Nc4 $16) 25. Rxd3 $18 {[%emt 0:00:08]} cxb4 {[%emt 0:00:09]} 26. cxb4 {[%emt 0:07:59]} Bxb4 {[%emt 0:00:18]} 27. Bd2 {[%emt 0:00:06]} Bxd2 {[%emt 0:05:37]} 28. Rxd2 {[%emt 0:00:41][%mdl 4096] Endgame. KRR-KRN} Rf6 {[%emt 0:00:01]} 29. Re7 {[%emt 0:00:28]} h5 {[%emt 0:00:18]} 30. Rd5 {[%emt 0:00:36]} Rg6+ {[%emt 0:01:35]} 31. Kf1 {[%emt 0:00:17]} Nc6 {[%emt 0:00:27]} 32. Re4 {[%emt 0:00:08]} b4 {[%emt 0:02:40]} 33. Rxh5 {[%emt 0:00:17]} a5 {[%emt 0:00:11]} 34. Rc4 {[%emt 0:00:51]} Rd6 {[%emt 0:01:18]} 35. Rhc5 {[%emt 0:00:21]} Nd4 {[%emt 0:00:44]} 36. Rxa5 {[%emt 0:00:31]} b3 {[%emt 0:00:18]} 37. axb3 {[%emt 0:01:00]} Nxb3 {[%emt 0:00:12]} 38. Ra8+ {[%emt 0:00:03]} Kf7 {[%emt 0:00:48]} 39. Rg4 {[%emt 0:00:07] Strongly threatening Ra7+.} g6 {[%emt 0:00:46]} 40. Ra7+ {[%emt 0:01:07]} Kf6 {[%emt 0:00:18]} 41. Kg2 {[%emt 0:00:11]} Nd4 {[%emt 0:01:21]} 42. Re4 {[%emt 0:01:16]} Nf5 {[%emt 0:00:23]} 43. h4 {[%emt 0:00:16]} Rc6 {[%emt 0:01:12]} 44. Rg4 {[%emt 0:02:01]} Rd6 {[%emt 0:00:29]} 45. Kh3 {[%emt 0:00:51]} Nh6 {[%emt 0:01:43]} 46. Rg2 {[%emt 0:00:42]} (46. Rga4 $142 Nf5 47. R4a6) 46... Rc6 {[%emt 0:00:47]} (46... Nf7 $142 47. Rg4 Nd8 48. Rf4+ Ke6) 47. Rg1 {[%emt 0:02:30]} Nf7 {[%emt 0:01:32]} 48. Rga1 {[%emt 0:00:32]} Rc4 {[%emt 0:01:50]} 49. R1a6+ {[%emt 0:00:21] White mates.} Kg7 {[%emt 0:00:07]} 50. Re6 {[%emt 0:00:14]} Rf4 {[%emt 0:00:58]} 51. Kg3 {[%emt 0:00:14]} Rf5 {[%emt 0:00:17]} 52. Ree7 {[%emt 0:00:05]} Kg8 {[%emt 0:01:07] [#]} 53. Rxf7 $1 {[%emt 0:00:07]} Rxf7 {[%emt 0:00:07]} 54. Rxf7 {[%emt 0:00:03]} Kxf7 {[%emt 0:00:07] KP-KP} 55. Kg4 {[%emt 0:00:02]} Kg8 {[%emt 0:01:02]} 56. Kg5 {[%emt 0:00:13]} Kg7 {[%emt 0:00:58]} 57. f4 {[%emt 0:00:06][%cal Bf3f4,Bf4f5][%mdl 32]} Kf7 {[%emt 0:00:15]} 58. f5 {[%emt 0:00:08]} Ke8 {[%emt 0:12:50] Weighted Error Value: White=0.18 (very precise) /Black=0.37.  Loses game:     	---       	Black=1      Mistake:       	---       	Black=1      Inaccurate:     	White=1     	Black=5      OK:         	White=13    	Black=7      Best:        	White=1     	Black=1} 1-0

[Event "25th Nepal Championship 2025"]
[Site "Hetauda"]
[Date "2025.01.30"]
[Round "8.2"]
[White "Maharjan, Suroj"]
[Black "Dahal, Sushrut"]
[Result "1/2-1/2"]
[Annotator "TA"]
[ECO "B20"]
[WhiteElo "1952"]
[BlackElo "2021"]
[PlyCount "49"]
[EventDate "2025.01.24"]
[EventType "tourn"]
[EventCountry "NEP"]
[SourceTitle "playchess.com"]
[Source "ChessBase"]
[SourceQuality "1"]
[TimeControl "5400+30"]

{[%evp 9,49,-3,0,-6,0,-9,0,-29,16,-12,4,-56,-58,-42,-65,-60,-60,-51,-56,-58,-39,-41,-43,-39,-17,-41,25,-21,0,-15,-18,-29,-4,-31,-29,-22,-17,-25,0,0,0,-961]} 1. e4 {[%emt 0:00:02][%cal Be2e4,Be4e5][%mdl 32]} c5 {[%emt 0:00:38]} 2. a3 {[%emt 0:00:17]} e6 {[%emt 0:03:45]} 3. b4 {[%emt 0:01:37]} cxb4 {[%emt 0:01:11]} 4. axb4 {[%emt 0:00:10]} Nf6 {[%emt 0:02:15]} 5. e5 {[%emt 0:01:08]} Nd5 {[%emt 0:02:19][%cal Od7d6]} 6. c3 {[%emt 0:01:01] B20: Sicilian: Unusual White 2nd moves.} d6 {[%emt 0:01:32]} 7. Nf3 {[%emt 0:03:59]} Nd7 $146 {[%emt 0:01:20]} (7... dxe5 8. Nxe5 Bd6 9. Bb5+ Nd7 10. Nxd7 Bxd7 11. Bxd7+ Qxd7 12. O-O O-O 13. d4 Qc7 {1-0 Medvedyk,V (1957)-Ivanov,T (1831) Lvov Ukrainian Chess Warriors rapid 2024 (8)}) 8. Bb5 {[%emt 0:01:53]} Be7 {[%emt 0:02:25]} 9. d4 {[%emt 0:01:16]} Qc7 {[%emt 0:04:17][%cal Rd6e5]} 10. Qb3 {[%emt 0:07:00]} ({White should try} 10. exd6 $11 Bxd6 11. Bd2) 10... dxe5 $15 {[%emt 0:03:16]} 11. Nxe5 {[%emt 0:00:32]} O-O {[%emt 0:01:26]} 12. Bxd7 {[%emt 0:01:15]} Bxd7 {[%emt 0:01:20]} 13. O-O {[%emt 0:00:09]} Rfc8 {[%emt 0:06:05] ...Bb5 is the strong threat.} 14. Bd2 {[%emt 0:00:54]} Bb5 {[%emt 0:05:34]} 15. Re1 {[%emt 0:01:33]} Bd6 {[%emt 0:10:20]} 16. Na3 {[%emt 0:00:44]} a6 {[%emt 0:01:31][%cal Ba7a6,Ba6b5,Bb5c4][%mdl 32]} (16... Nxc3 $2 {too greedy.} 17. Bxc3 Be8 18. Rac1 $18) 17. Rac1 {[%emt 0:06:56] [#] and c4 should not be overlooked} Nb6 {[%emt 0:07:02]} (17... Bxe5 $15 18. Rxe5 Bc4) 18. h3 {[%emt 0:04:13]} (18. c4 $142 Ba4 (18... Bxe5 19. Rxe5 Bc6 20. Qg3 $14) 19. Qf3) 18... Nc4 {[%emt 0:03:44]} 19. Nxb5 {[%emt 0:05:22]} axb5 {[%emt 0:11:20]} 20. Nxc4 {[%emt 0:02:04]} bxc4 {[%emt 0:01:04]} (20... Qxc4 {simplifies} 21. Qxc4 bxc4 22. g3 Kf8) 21. Qc2 {[%emt 0:03:04]} Qc6 {[%emt 0:03:40]} 22. Ra1 {[%emt 0:04:06]} h6 {[%emt 0:01:28]} 23. Qd1 {[%emt 0:52:45]} b5 {[%emt 0:24:28]} 24. Qg4 {[%emt 0:00:00]} Kf8 {[%emt 0:00:30]} 25. Qe4 $2 {[%emt 0:01:00][%mdl 40960] Weighted Error Value: White=0.15 (very precise) /Black=0.14 (very precise)  An unexpected result.  Loses game:     	White=1     	---        Mistake:       	White=2     	Black=1      Inaccurate:     	White=3     	Black=1      OK:         	White=6     	Black=4      Best:        	---       	Black=1} (25. Bf4 $11) 1/2-1/2

[Event "25th Nepal Championship 2025"]
[Site "Hetauda"]
[Date "2025.01.30"]
[Round "8.3"]
[White "Bhandari, Kshitiz"]
[Black "Thapa, Binay"]
[Result "1-0"]
[Annotator "RC"]
[ECO "D11"]
[WhiteElo "2070"]
[BlackElo "1688"]
[PlyCount "81"]
[EventDate "2025.01.24"]
[EventType "tourn"]
[EventCountry "NEP"]
[SourceTitle "playchess.com"]
[Source "ChessBase"]
[SourceQuality "1"]
[TimeControl "5400+30"]

1. d4 {[%emt 0:00:30]} d5 {[%emt 0:00:10]} 2. c4 {[%emt 0:00:00]} c6 {[%emt 0:00:15]} 3. e3 {[%emt 0:00:00]} Nf6 {[%emt 0:00:13]} 4. Nf3 {[%emt 0:00:05]} Bg4 {[%emt 0:00:07]} 5. Nc3 {[%emt 0:00:54]} e6 {[%emt 0:02:04]} 6. cxd5 {[%emt 0:01:21]} exd5 {[%emt 0:00:47]} 7. Be2 {[%emt 0:01:43]} Bd6 {[%emt 0:00:44]} 8. Qc2 {[%emt 0:03:46]} Qe7 {[%emt 0:00:46]} 9. Nh4 {[%emt 0:02:11]} Bxe2 {[%emt 0:01:47]} 10. Nf5 {[%emt 0:00:17]} Qf8 {[%emt 0:01:57]} 11. Qxe2 {[%emt 0:02:00]} Bb4 {[%emt 0:01:05]} 12. O-O {[%emt 0:00:27]} g6 {[%emt 0:00:32]} 13. Ng3 {[%emt 0:00:05]} Qg7 {[%emt 0:00:46]} 14. a3 {[%emt 0:00:51]} Ba5 {[%emt 0:00:23]} 15. e4 {[%emt 0:05:23]} O-O {[%emt 0:00:29]} 16. e5 {[%emt 0:00:13]} Ne8 {[%emt 0:00:36]} 17. f4 {[%emt 0:00:17]} f5 {[%emt 0:00:29]} 18. Qf3 {[%emt 0:00:47]} Nc7 {[%emt 0:00:30]} 19. b4 {[%emt 0:00:42]} Bb6 {[%emt 0:00:18]} 20. Be3 {[%emt 0:00:28]} Ne6 {[%emt 0:01:39]} 21. Nge2 {[%emt 0:00:18]} a6 {[%emt 0:02:17]} 22. Kh1 {[%emt 0:00:27]} Nd7 {[%emt 0:00:24]} 23. a4 {[%emt 0:02:45]} Ba7 {[%emt 0:01:15]} 24. a5 {[%emt 0:01:59]} Kh8 {[%emt 0:00:37]} 25. Qh3 {[%emt 0:03:21]} Rf7 {[%emt 0:00:25]} 26. Na4 {[%emt 0:00:15]} Rg8 {[%emt 0:00:10]} 27. Rab1 {[%emt 0:02:08]} Qf8 {[%emt 0:00:57]} 28. Nc5 {[%emt 0:00:28]} Ndxc5 {[%emt 0:00:50]} 29. bxc5 {[%emt 0:00:01]} Qd8 {[%emt 0:01:01]} 30. Bd2 {[%emt 0:00:08]} Qc8 {[%emt 0:01:03]} 31. Rb3 {[%emt 0:00:34]} Bxc5 {[%emt 0:00:25]} 32. dxc5 {[%emt 0:00:01]} Nxc5 {[%emt 0:00:15]} 33. e6 {[%emt 0:00:41]} Qxe6 {[%emt 0:00:26]} 34. Bc3+ {[%emt 0:00:05]} Rgg7 {[%emt 0:00:08]} 35. Rb2 {[%emt 0:00:44]} Ne4 {[%emt 0:00:31]} 36. Bxg7+ {[%emt 0:00:15]} Rxg7 {[%emt 0:00:11]} 37. Qh4 {[%emt 0:01:27]} Qf6 {[%emt 0:00:31]} 38. Qxf6 {[%emt 0:00:19]} Nxf6 {[%emt 0:01:01]} 39. Nd4 {[%emt 0:00:12]} b6 {[%emt 0:00:10]} 40. axb6 {[%emt 0:00:04]} c5 {[%emt 0:00:16]} 41. Ne6 {[%emt 0:00:04]} 1-0